bitfinex/quotes_SOLUSD_20220116
["timestamp","ask_amount","ask_price","bid_price","bid_amount"]
[1642327223911,34.1148,149.48,149.37,8.00216043]
[1642327224808,76.53070713,149.48,149.37,8.00216043]
[1642327225209,82.53070713,149.48,149.37,8.00216043]
[1642327226411,82.53070713,149.48,149.37,75.08216043]
[1642327226710,82.53070713,149.48,149.37,76.26807338]
[1642327226912,82.53070713,149.48,149.37,70.26807338]
[1642327229512,40.1148,149.48,149.37,70.26807338]
[1642327229713,30.2748,149.48,149.37,86.34807338]
[1642327230014,30.2748,149.48,149.37,92.34807338]
[1642327230214,6.0,149.48,149.37,92.34807338]
[1642327230413,25.0627574,149.52,149.37,92.34807338]
[1642327230613,61.53720466,149.52,149.38,33.47]
[1642327230813,61.53720466,149.52,149.39,110.65]
[1642327231016,61.53720466,149.52,149.39,111.83255599]
[1642327231213,61.53720466,149.52,149.4,1.18255599]
[1642327231413,61.53720466,149.52,149.41,0.26]
[1642327232013,61.53720466,149.52,149.41,10.1]
[1642327232214,23.1586,149.52,149.42,4.82801143]
[1642327232413,23.1586,149.52,149.43,0.26]
[1642327232614,23.1586,149.52,149.43,67.34]
[1642327232914,34.1188,149.54,149.43,74.77255599]
[1642327233716,34.1188,149.54,149.43,74.51255599]
[1642327233912,34.1188,149.54,149.43,6.25]
[1642327234114,40.1188,149.54,149.43,6.25]
[1642327234313,40.1188,149.54,149.43,0.25]
[1642327234514,40.1188,149.54,149.43,6.0]
[1642327234715,40.1188,149.54,149.43,6.25]
[1642327235116,40.1188,149.54,149.44,0.26]
[1642327235316,40.1188,149.54,149.43,6.51]
[1642327235919,40.1188,149.54,149.43,0.51]
[1642327236118,40.1188,149.54,149.43,6.51]
[1642327236720,40.1188,149.54,149.43,0.26]
[1642327239922,40.1188,149.54,149.42,9.89545544]
[1642327241325,40.1188,149.54,149.43,0.26]
[1642327242624,40.1188,149.54,149.42,3.89545544]
[1642327243728,40.3688,149.54,149.42,3.89545544]
[1642327244228,40.3688,149.54,149.42,3.64545544]
[1642327244430,40.3688,149.54,149.43,0.26]
[1642327245528,40.1188,149.54,149.43,0.26]
[1642327246931,1.9041574,149.5,149.43,0.26]
[1642327247231,46.60194148,149.5,149.43,0.26]
[1642327247934,44.69778408,149.5,149.43,0.26]
[1642327249639,44.69778408,149.5,149.41,0.26]
[1642327250439,46.60194148,149.5,149.41,4.25738078]
[1642327250838,46.60194148,149.5,149.41,4.50738078]
[1642327251040,52.60194148,149.5,149.41,4.50738078]
[1642327252339,46.60194148,149.5,149.41,4.50738078]
[1642327253140,1.9041574,149.5,149.41,4.50738078]
[1642327253941,1.9041574,149.51,149.41,4.50738078]
[1642327254241,39.66743906,149.51,149.41,4.50738078]
[1642327254644,43.76328166,149.51,149.41,4.50738078]
[1642327255470,45.66743906,149.51,149.41,4.50738078]
[1642327256173,7.9041574,149.51,149.42,67.05]
[1642327256373,7.9041574,149.51,149.43,0.26]
[1642327257472,6.0,149.51,149.44,1.18255599]
[1642327257876,6.0,149.51,149.45,0.26]
[1642327258077,25.6628574,149.52,149.45,0.26]
[1642327258379,29.7587,149.52,149.45,0.26]
[1642327264585,29.7587,149.52,149.43,0.26]
[1642327265388,23.7587,149.52,149.43,0.26]
[1642327267191,23.7587,149.52,149.43,1.44255599]
[1642327267391,23.7587,149.52,149.43,7.69255599]
[1642327268391,23.7587,149.52,149.43,7.43255599]
[1642327268592,29.7587,149.52,149.4,1.90913062]
[1642327268792,9.84,149.51,149.4,1.90913062]
[1642327268994,24.876,149.5,149.4,1.90913062]
[1642327269190,24.876,149.5,149.4,7.90913062]
[1642327269191,34.716,149.5,149.4,7.90913062]
[1642327269391,33.716,149.5,149.4,7.90913062]
[1642327269592,33.716,149.5,149.41,4.80885183]
[1642327269990,33.716,149.5,149.41,11.05885183]
[1642327270192,35.6201574,149.5,149.41,11.05885183]
[1642327270992,35.6201574,149.5,149.42,0.26]
[1642327271392,33.716,149.5,149.42,0.26]
[1642327271994,33.716,149.5,149.41,11.05885183]
[1642327273299,33.716,149.5,149.42,67.05]
[1642327273497,23.876,149.5,149.42,0.26]
[1642327273720,23.876,149.5,149.42,0.51]
[1642327274122,23.876,149.5,149.42,0.26]
[1642327290744,54.26317206,149.53,149.42,0.26]
[1642327290948,60.26317206,149.53,149.42,22.8041]
[1642327291154,52.35901466,149.53,149.42,22.8041]
[1642327291550,22.5284,149.52,149.42,22.8041]
[1642327292781,22.5284,149.52,149.42,23.0541]
[1642327293773,24.4325574,149.52,149.42,23.0541]
[1642327294374,30.4325574,149.52,149.42,23.0541]
[1642327294575,24.4325574,149.52,149.42,23.0541]
[1642327294776,22.5284,149.52,149.42,22.7941]
[1642327295175,9.84,149.51,149.42,22.7941]
[1642327295776,24.6337,149.5,149.42,22.7941]
[1642327295978,24.6337,149.5,149.43,0.26]
[1642327296378,24.6337,149.5,149.4,1.90913062]
[1642327296579,32.9807,149.5,149.4,7.90913062]
[1642327296781,42.8207,149.5,149.4,6.02002299]
[1642327297382,42.8207,149.5,149.4,10.11089237]
[1642327297583,42.8207,149.5,149.41,0.26]
[1642327298278,48.8207,149.5,149.41,0.26]
[1642327299081,50.7248574,149.5,149.39,0.26]
[1642327299981,50.9748574,149.5,149.39,3.94335428]
[1642327300181,50.9748574,149.5,149.39,10.19335428]
[1642327300682,50.9748574,149.5,149.39,4.19335428]
[1642327301082,50.9748574,149.5,149.39,3.94335428]
[1642327302182,50.9748574,149.5,149.39,3.68335428]
[1642327302382,50.9748574,149.5,149.39,3.93335428]
[1642327303684,50.9748574,149.5,149.39,3.68335428]
[1642327304888,50.7248574,149.5,149.4,0.26]
[1642327305092,48.8207,149.5,149.4,0.26]
[1642327305586,48.8207,149.5,149.38,23.8231]
[1642327305788,48.8207,149.5,149.38,25.73223062]
[1642327306288,48.8207,149.5,149.38,30.0486357]
[1642327306689,41.3778574,149.5,149.38,28.13950508]
[1642327306891,41.3778574,149.5,149.39,0.26]
[1642327307792,39.4737,149.5,149.39,0.26]
[1642327313698,33.4737,149.5,149.39,0.26]
[1642327316004,39.4737,149.5,149.39,0.26]
[1642327317304,39.4737,149.5,149.38,4.31640508]
[1642327317505,41.3778574,149.5,149.38,4.56640508]
[1642327319934,41.3778574,149.5,149.39,0.26]
[1642327320830,39.4737,149.5,149.39,0.26]
[1642327321130,39.4737,149.5,149.38,0.25]
[1642327321329,39.4737,149.5,149.38,0.26]
[1642327321729,1.9041574,149.49,149.38,0.26]
[1642327321933,9.84,149.48,149.38,0.26]
[1642327322131,22.6584,149.47,149.37,5.20747219]
[1642327322333,32.4984,149.47,149.37,5.20747219]
[1642327322835,32.4984,149.47,149.37,5.45747219]
[1642327323232,9.84,149.47,149.37,5.45747219]
[1642327323833,16.09,149.47,149.37,5.45747219]
[1642327324039,16.09,149.47,149.37,0.25]
[1642327324434,16.09,149.47,149.36,2.15913062]
[1642327325235,17.9941574,149.47,149.36,0.25]
[1642327325440,19.69493328,149.47,149.35,2.15913062]
[1642327326336,142.66493328,149.47,149.35,0.25]
[1642327326535,152.70413328,149.47,149.35,0.25]
[1642327326734,152.70413328,149.47,149.34,2.15913062]
[1642327327338,1.9041574,149.46,149.34,2.15913062]
[1642327327536,9.84,149.45,149.34,2.15913062]
[1642327327736,9.84,149.45,149.34,7.07873304]
[1642327328339,9.84,149.45,149.34,0.25]
[1642327328742,9.84,149.45,149.33,2.15913062]
[1642327329338,9.84,149.45,149.33,6.99418946]
[1642327329739,9.84,149.45,149.34,0.26]
[1642327331438,15.84,149.45,149.34,0.26]
[1642327331641,16.09,149.45,149.34,0.26]
[1642327332640,15.84,149.45,149.34,0.26]
[1642327333746,49.89798358,149.43,149.34,0.26]
[1642327333945,33.3842,149.42,149.34,0.26]
[1642327335153,39.3842,149.42,149.34,0.26]
[1642327337248,33.3842,149.42,149.34,0.26]
[1642327338451,33.3842,149.42,149.34,2.16913062]
[1642327338852,33.3842,149.42,149.34,2.41913062]
[1642327339052,33.3842,149.42,149.34,26.95213062]
[1642327339752,9.84,149.42,149.34,26.95213062]
[1642327342754,24.2539,149.45,149.34,94.00213062]
[1642327343156,30.2539,149.45,149.34,94.00213062]
[1642327343356,30.2539,149.45,149.35,1.90913062]
[1642327343955,30.2539,149.45,149.36,0.26]
[1642327344157,24.2539,149.45,149.36,0.26]
[1642327344358,24.2539,149.45,149.36,2.16913062]
[1642327344557,30.2539,149.45,149.36,2.16913062]
[1642327344757,24.2539,149.45,149.36,2.41913062]
[1642327345195,30.2539,149.45,149.36,2.41913062]
[1642327345892,24.2539,149.45,149.36,2.41913062]
[1642327346292,30.2539,149.45,149.36,2.41913062]
[1642327346492,30.2539,149.45,149.36,2.16913062]
[1642327346894,30.2539,149.45,149.37,1.90913062]
[1642327347295,30.2539,149.45,149.38,0.26]
[1642327349897,24.2539,149.45,149.38,0.26]
[1642327353902,30.2539,149.45,149.38,0.26]
[1642327354104,24.2539,149.45,149.38,0.26]
[1642327354306,30.2539,149.45,149.38,0.26]
[1642327357906,30.2539,149.45,149.38,2.16913062]
[1642327358305,30.2539,149.45,149.38,2.41913062]
[1642327358706,24.2539,149.45,149.38,0.51]
[1642327358907,24.2539,149.45,149.38,0.25]
[1642327359507,24.2539,149.45,149.37,2.15913062]
[1642327360709,9.84,149.44,149.37,2.15913062]
[1642327361106,48.0505995,149.42,149.37,2.15913062]
[1642327361310,48.0505995,149.42,149.38,0.26]
[1642327362309,48.0505995,149.42,149.37,1.90913062]
[1642327363311,48.0505995,149.42,149.35,1.90913062]
[1642327363510,54.0505995,149.42,149.35,2.16913062]
[1642327363732,48.0505995,149.42,149.35,2.16913062]
[1642327363935,63.8905995,149.42,149.35,1.90913062]
[1642327364634,15.84,149.42,149.35,1.90913062]
[1642327365035,15.84,149.42,149.35,0.25]
[1642327365233,9.84,149.42,149.36,0.26]
[1642327365433,9.84,149.42,149.33,2.15913062]
[1642327365633,48.86571905,149.42,149.34,5.0335299]
[1642327365836,48.86571905,149.42,149.34,5.2835299]
[1642327366034,9.84,149.42,149.34,5.2835299]
[1642327366835,9.84,149.42,149.35,2.16913062]
[1642327367235,9.84,149.42,149.35,2.41913062]
[1642327367436,15.84,149.42,149.35,2.41913062]
[1642327367641,9.84,149.42,149.35,2.41913062]
[1642327368238,15.84,149.42,149.36,1.90913062]
[1642327368441,15.84,149.42,149.37,0.26]
[1642327369241,9.84,149.42,149.36,2.15913062]
[1642327370439,15.84,149.42,149.36,2.15913062]
[1642327370639,15.84,149.42,149.37,0.26]
[1642327371342,9.84,149.42,149.37,0.26]
[1642327372043,9.84,149.42,149.36,0.26]
[1642327372441,9.84,149.42,149.36,2.16913062]
[1642327372846,9.84,149.42,149.36,2.41913062]
[1642327373441,9.84,149.42,149.36,0.51]
[1642327373942,9.84,149.42,149.36,0.26]
[1642327374342,9.84,149.42,149.35,2.15913062]
[1642327374543,15.84,149.42,149.35,2.15913062]
[1642327375745,9.84,149.42,149.35,0.25]
[1642327375945,9.84,149.42,149.35,0.26]
[1642327376547,9.84,149.42,149.35,2.16913062]
[1642327376945,9.84,149.42,149.35,2.41913062]
[1642327381851,15.84,149.42,149.35,2.41913062]
[1642327382049,9.84,149.42,149.35,2.41913062]
[1642327382752,15.84,149.42,149.35,2.41913062]
[1642327383155,15.84,149.42,149.35,2.16913062]
[1642327383454,15.84,149.42,149.35,1.90913062]
[1642327384054,15.84,149.42,149.34,1.90913062]
[1642327384554,15.84,149.42,149.34,2.15913062]
[1642327385857,15.84,149.42,149.34,0.25]
[1642327386258,15.84,149.42,149.33,2.15913062]
[1642327387862,16.09,149.42,149.33,2.15913062]
[1642327389267,16.09,149.42,149.34,1.90913062]
[1642327389467,15.84,149.42,149.34,2.15913062]
[1642327389666,15.84,149.42,149.35,0.26]
[1642327390268,15.84,149.42,149.34,2.15913062]
[1642327395469,15.84,149.42,149.35,0.26]
[1642327395970,15.84,149.42,149.35,2.16913062]
[1642327396173,15.84,149.42,149.35,2.41913062]
[1642327397899,15.84,149.42,149.35,1.90913062]
[1642327398300,15.84,149.42,149.34,1.90913062]
[1642327399499,15.84,149.42,149.34,2.15913062]
[1642327399901,15.84,149.42,149.34,1.90913062]
[1642327400404,15.84,149.42,149.33,7.01756069]
[1642327400603,15.84,149.42,149.33,7.26756069]
[1642327401703,16.09,149.42,149.33,7.01756069]
[1642327403304,16.09,149.42,149.34,1.90913062]
[1642327403705,16.09,149.42,149.34,2.15913062]
[1642327404709,15.84,149.42,149.34,2.15913062]
[1642327405306,16.09,149.42,149.34,2.15913062]
[1642327405908,16.09,149.42,149.34,1.90913062]
[1642327406207,16.09,149.42,149.34,2.15913062]
[1642327406406,16.09,149.42,149.34,0.25]
[1642327407310,16.09,149.42,149.34,2.15913062]
[1642327407508,16.09,149.42,149.34,1.90913062]
[1642327407806,16.09,149.42,149.34,2.15913062]
[1642327410809,15.84,149.42,149.34,2.15913062]
[1642327412111,15.84,149.42,149.35,0.26]
[1642327412412,15.84,149.42,149.35,2.16913062]
[1642327412811,15.84,149.42,149.35,2.41913062]
[1642327413415,15.84,149.42,149.37,1.90913062]
[1642327413815,15.84,149.42,149.38,0.26]
[1642327414216,15.84,149.42,149.38,1.55292256]
[1642327414517,9.84,149.42,149.38,1.80292256]
[1642327414717,9.84,149.42,149.38,3.71205318]
[1642327415120,9.84,149.45,149.38,3.71205318]
[1642327418321,9.84,149.45,149.39,1.90913062]
[1642327418722,24.4913,149.46,149.4,0.26]
[1642327419724,24.4913,149.46,149.39,0.51]
[1642327419922,24.4913,149.46,149.39,0.26]
[1642327420523,24.4913,149.46,149.39,2.16913062]
[1642327420726,24.4913,149.46,149.39,2.41913062]
[1642327421525,24.4913,149.46,149.39,0.51]
[1642327421924,24.4913,149.46,149.38,3.45205318]
[1642327422128,72.04770337,149.46,149.38,3.45205318]
[1642327422824,9.84,149.48,149.38,3.45205318]
[1642327423025,15.84,149.48,149.38,3.45205318]
[1642327423226,15.84,149.48,149.39,0.26]
[1642327423824,60.12198844,149.48,149.39,0.26]
[1642327426228,60.12198844,149.48,149.38,3.45205318]
[1642327426930,60.12198844,149.48,149.38,1.54292256]
[1642327427834,60.12198844,149.48,149.39,0.26]
[1642327428033,23.59,149.47,149.39,0.26]
[1642327429834,23.59,149.47,149.38,1.54292256]
[1642327430340,23.59,149.47,149.38,2.72226494]
[1642327431243,23.59,149.47,149.39,0.26]
[1642327432139,29.59,149.47,149.39,0.26]
[1642327434742,29.09,149.47,149.39,0.26]
[1642327436653,6.0,149.47,149.39,1.43934238]
[1642327436844,9.84,149.48,149.39,1.68934238]
[1642327437550,9.84,149.48,149.39,3.598473]
[1642327438678,9.84,149.48,149.39,70.648473]
[1642327438876,9.84,149.48,149.4,23.8887]
[1642327439076,9.84,149.48,149.4,90.9387]
[1642327439278,9.84,149.48,149.41,1.43934238]
[1642327439477,9.84,149.48,149.41,1.68934238]
[1642327439678,9.84,149.48,149.41,7.68934238]
[1642327440077,9.84,149.48,149.41,1.68934238]
[1642327440279,9.84,149.48,149.41,3.598473]
[1642327440783,15.84,149.48,149.41,3.598473]
[1642327441482,15.84,149.48,149.41,2.41913062]
[1642327442085,15.84,149.48,149.43,3.84469331]
[1642327442483,15.84,149.48,149.44,0.26]
[1642327445384,15.84,149.48,149.43,4.09469331]
[1642327445785,15.84,149.48,149.43,0.25]
[1642327445986,15.84,149.48,149.42,2.15913062]
[1642327446786,15.84,149.48,149.43,3.87904329]
[1642327447187,15.84,149.48,149.43,0.51]
[1642327447389,6.0,149.48,149.43,0.25]
[1642327447788,22.9484,149.5,149.43,0.25]
[1642327448388,22.9484,149.5,149.42,5.49966937]
[1642327449689,22.9484,149.5,149.42,0.25]
[1642327449918,22.9484,149.5,149.41,1.90913062]
[1642327450794,22.9484,149.5,149.4,29.4511561]
[1642327451194,22.9484,149.5,149.41,0.26]
[1642327451397,28.9484,149.5,149.41,0.26]
[1642327454198,28.9484,149.5,149.41,4.20877338]
[1642327454397,28.9484,149.5,149.41,4.45877338]
[1642327454897,1.9041574,149.52,149.41,11.63811576]
[1642327455097,25.1301574,149.52,149.42,22.9067]
[1642327455498,25.1301574,149.52,149.43,1.43934238]
[1642327455799,23.226,149.52,149.43,1.43934238]
[1642327455998,23.226,149.52,149.43,7.68934238]
[1642327456400,23.226,149.52,149.44,24.4687]
[1642327456803,23.226,149.52,149.45,0.26]
[1642327460429,47.38104214,149.54,149.45,0.26]
[1642327460831,53.38104214,149.54,149.45,0.26]
[1642327463733,24.6367,149.53,149.45,0.26]
[1642327469043,30.6367,149.53,149.45,0.26]
[1642327469241,24.6367,149.53,149.45,0.26]
[1642327470444,30.6367,149.53,149.45,0.26]
[1642327470643,24.6367,149.53,149.45,0.26]
[1642327472946,9.84,149.52,149.45,0.26]
[1642327473145,24.4539,149.51,149.45,0.26]
[1642327473347,24.4539,149.51,149.44,0.26]
[1642327473947,24.4539,149.51,149.42,0.26]
[1642327474348,24.4539,149.51,149.42,25.95114238]
[1642327474850,24.4539,149.51,149.42,26.20114238]
[1642327475447,24.4539,149.51,149.42,28.110273]
[1642327475648,30.4539,149.51,149.42,28.110273]
[1642327475849,24.4539,149.51,149.42,28.110273]
[1642327478181,24.4539,149.51,149.43,1.90913062]
[1642327478381,24.4539,149.51,149.44,0.26]
[1642327479381,24.4539,149.51,149.43,0.51]
[1642327479584,24.4539,149.51,149.43,0.26]
[1642327481381,24.4539,149.51,149.43,1.43934238]
[1642327481583,24.4539,149.51,149.43,1.68934238]
[1642327481882,24.4539,149.51,149.43,0.51]
[1642327482686,24.4539,149.51,149.43,0.26]
[1642327483888,24.4539,149.51,149.43,2.16913062]
[1642327484288,39.25299231,149.5,149.43,2.41913062]
[1642327484490,39.25299231,149.5,149.43,0.51]
[1642327485090,23.9309,149.49,149.43,0.51]
[1642327485490,39.25299231,149.5,149.43,0.26]
[1642327485991,39.25299231,149.5,149.43,2.16913062]
[1642327486191,39.25299231,149.5,149.43,2.41913062]
[1642327486391,9.84,149.52,149.43,2.41913062]
[1642327487295,41.52999888,149.51,149.43,2.41913062]
[1642327487897,23.4598,149.5,149.43,2.41913062]
[1642327493201,23.4598,149.5,149.44,1.90913062]
[1642327493401,23.4598,149.5,149.45,0.26]
[1642327494301,23.4598,149.5,149.44,0.51]
[1642327494501,23.4598,149.5,149.44,0.26]
[1642327494801,23.4598,149.5,149.44,1.90913062]
[1642327495233,23.4598,149.5,149.44,2.15913062]
[1642327495534,23.4598,149.5,149.44,0.25]
[1642327495931,23.4598,149.5,149.44,0.51]
[1642327496332,23.4598,149.5,149.44,0.26]
[1642327498438,9.84,149.52,149.44,0.26]
[1642327499237,9.84,149.52,149.44,25.58913062]
[1642327499439,50.72859422,149.52,149.44,25.83913062]
[1642327501139,40.88859422,149.52,149.44,25.83913062]
[1642327505045,40.88859422,149.52,149.44,31.83913062]
[1642327506642,22.5395,149.51,149.44,31.83913062]
[1642327507842,11.7441574,149.55,149.44,31.83913062]
[1642327508044,24.4158,149.54,149.45,1.90913062]
[1642327508445,44.45098322,149.53,149.46,0.26]
[1642327509246,23.8519,149.52,149.46,0.26]
[1642327510447,23.8519,149.52,149.45,6.26]
[1642327510753,23.8519,149.52,149.45,2.16913062]
[1642327510951,23.8519,149.52,149.45,2.41913062]
[1642327511347,23.8519,149.52,149.45,8.41913062]
[1642327511746,23.8519,149.52,149.45,2.41913062]
[1642327512246,17.7441574,149.55,149.45,6.51]
[1642327512447,17.7441574,149.55,149.46,91.5849]
[1642327512646,1.9041574,149.55,149.46,97.5849]
[1642327512845,1.9041574,149.55,149.47,1.43934238]
[1642327513253,1.9041574,149.55,149.48,1.17934238]
[1642327513546,24.8934574,149.58,149.49,0.26]
[1642327513747,1.9041574,149.58,149.49,0.26]
[1642327513950,1.9041574,149.58,149.5,11.01934238]
[1642327514147,1.9041574,149.58,149.51,67.05]
[1642327514348,1.9041574,149.58,149.51,81.49034238]
[1642327514649,1.90486153,149.62,149.53,0.3199427]
[1642327515048,1.90486153,149.62,149.54,1.17934238]
[1642327515449,1.90486153,149.62,149.55,0.26]
[1642327515851,53.3647259,149.65,149.55,68.48934238]
[1642327516248,53.3647259,149.65,149.55,74.73934238]
[1642327516449,49.5552342,149.65,149.55,74.73934238]
[1642327517248,49.5552342,149.65,149.55,74.22934238]
[1642327517447,49.5552342,149.65,149.55,6.0]
[1642327517849,23.4778,149.64,149.54,30.1176]
[1642327518652,23.4778,149.64,149.54,24.3676]
[1642327518850,23.4778,149.64,149.55,0.26]
[1642327519851,9.84,149.67,149.55,0.26]
[1642327520054,9.84,149.67,149.55,1.43934238]
[1642327520453,9.84,149.67,149.55,6.51]
[1642327520651,9.84,149.67,149.56,23.1723]
[1642327520852,48.59356405,149.66,149.57,0.26]
[1642327521254,24.4361,149.65,149.57,0.26]
[1642327523563,24.4361,149.65,149.58,1.17934238]
[1642327524060,48.59356405,149.66,149.59,0.26]
[1642327524761,32.8873,149.7,149.59,0.26]
[1642327524962,38.8873,149.7,149.59,0.26]
[1642327525563,40.77318769,149.69,149.59,25.1251]
[1642327525761,40.77318769,149.69,149.59,0.26]
[1642327526164,24.8243,149.68,149.59,0.26]
[1642327526761,24.8243,149.68,149.56,82.89]
[1642327526762,24.8243,149.68,149.57,24.8504]
[1642327526964,40.77318769,149.69,149.58,67.05]
[1642327527162,40.77318769,149.69,149.59,24.41074238]
[1642327527363,40.77318769,149.69,149.6,67.05]
[1642327527565,40.77318769,149.69,149.59,30.67074238]
[1642327527966,6.0,149.7,149.59,30.92074238]
[1642327528565,24.1381,149.69,149.59,97.97074238]
[1642327528993,61.80711189,149.69,149.59,97.97074238]
[1642327531399,37.66901189,149.69,149.59,97.97074238]
[1642327531598,9.84,149.73,149.59,109.34465084]
[1642327531797,23.4102,149.72,149.6,9.84]
[1642327531998,23.4102,149.72,149.62,67.05]
[1642327532198,23.4102,149.72,149.63,23.0678]
[1642327532398,23.4102,149.72,149.63,97.80714238]
[1642327532599,68.65139179,149.72,149.63,97.80714238]
[1642327533200,74.65139179,149.72,149.63,97.80714238]
[1642327536303,74.65139179,149.72,149.63,97.82714238]
[1642327536702,74.65139179,149.72,149.63,97.57714238]
[1642327537303,29.4102,149.72,149.63,97.57714238]
[1642327537902,28.4102,149.72,149.63,97.82714238]
[1642327538204,42.48885321,149.71,149.63,97.82714238]
[1642327538406,22.4102,149.72,149.63,97.82714238]
[1642327538803,22.4102,149.72,149.64,1.17934238]
[1642327539405,22.4102,149.72,149.65,0.26]
[1642327539805,22.4102,149.72,149.65,1.17934238]
[1642327540004,28.4102,149.72,149.64,6.25]
[1642327540205,28.4102,149.72,149.64,0.25]
[1642327540405,28.4102,149.72,149.64,6.0]
[1642327541006,28.4102,149.72,149.63,29.0878]
[1642327541307,28.4102,149.72,149.64,0.26]
[1642327541506,28.4102,149.72,149.65,0.02]
[1642327542108,28.4102,149.72,149.65,1.19934238]
[1642327542308,28.4102,149.72,149.66,0.26]
[1642327542908,28.4102,149.72,149.65,0.53]
[1642327543309,28.4102,149.72,149.65,1.44934238]
[1642327543711,28.4102,149.72,149.66,0.26]
[1642327544110,28.4102,149.72,149.66,1.43934238]
[1642327544414,28.4102,149.72,149.67,0.26]
[1642327545013,28.4102,149.72,149.66,0.25]
[1642327545812,28.4102,149.72,149.65,0.02]
[1642327546813,28.4102,149.72,149.66,0.02]
[1642327550018,38.2502,149.72,149.66,0.02]
[1642327559452,32.2502,149.72,149.66,1.19934238]
[1642327559652,22.4102,149.72,149.66,1.19934238]
[1642327559853,22.4102,149.72,149.67,0.26]
[1642327562454,22.4102,149.72,149.66,7.44934238]
[1642327562659,22.4102,149.72,149.66,1.44934238]
[1642327563756,22.4102,149.72,149.67,0.26]
[1642327564257,22.4102,149.72,149.66,1.19934238]
[1642327564459,22.4102,149.72,149.66,0.02]
[1642327594718,44.04402309,149.71,149.66,0.02]
[1642327597020,24.8197,149.7,149.66,0.02]
[1642327604931,44.04402309,149.71,149.66,0.02]
[1642327605330,50.04402309,149.71,149.66,0.02]
[1642327608934,59.88402309,149.71,149.66,0.02]
[1642327609740,59.88402309,149.71,149.57,28.22195908]
[1642327609933,61.58479897,149.71,149.57,3.73455908]
[1642327610135,184.55479897,149.71,149.57,3.73455908]
[1642327610837,184.55479897,149.71,149.56,490.78704109]
[1642327611438,194.57779897,149.71,149.56,490.78704109]
[1642327611839,194.82779897,149.71,149.54,3.73455908]
[1642327612037,23.0393,149.7,149.53,22.5616]
[1642327612237,9.84,149.69,149.53,22.5616]
[1642327612438,11.54077588,149.69,149.53,22.5616]
[1642327612640,9.84,149.69,149.54,95.58227261]
[1642327612839,9.84,149.69,149.55,24.2303]
[1642327613040,9.84,149.69,149.55,25.41257261]
[1642327613240,9.84,149.69,149.56,1.18227261]
[1642327613541,9.84,149.69,149.56,7.69227261]
[1642327613939,9.84,149.69,149.57,1.18227261]
[1642327614238,9.84,149.69,149.57,25.42277261]
[1642327614441,9.84,149.69,149.58,0.26]
[1642327615339,24.442,149.68,149.57,7.43227261]
[1642327615540,24.442,149.68,149.57,6.25]
[1642327615940,24.442,149.68,149.57,0.25]
[1642327616141,30.442,149.68,149.55,31.0799]
[1642327616339,30.442,149.68,149.57,1.18227261]
[1642327616739,30.442,149.68,149.58,0.26]
[1642327619748,40.282,149.68,149.58,0.26]
[1642327620150,40.282,149.68,149.56,0.26]
[1642327620547,40.282,149.68,149.57,1.18227261]
[1642327620749,40.282,149.68,149.56,0.26]
[1642327625181,40.282,149.68,149.55,31.0799]
[1642327626383,40.282,149.68,149.56,0.26]
[1642327627185,40.532,149.68,149.56,0.26]
[1642327628086,47.09500345,149.71,149.56,38.06034108]
[1642327628286,9.84,149.7,149.56,38.06034108]
[1642327628585,11.54077588,149.7,149.56,44.31034108]
[1642327628785,35.91167588,149.7,149.56,38.31034108]
[1642327629588,35.91167588,149.7,149.56,38.06034108]
[1642327630888,35.91167588,149.7,149.56,38.31034108]
[1642327634799,35.91167588,149.7,149.56,44.31034108]